bitfinex/quotes_BTCUSD_20220111
["timestamp","ask_amount","ask_price","bid_price","bid_amount"]
[1641896262611,0.00121707,41814.0,41804.0,0.90626271]
[1641896262810,0.052,41809.0,41804.0,0.90626271]
[1641896263010,0.052,41809.0,41804.0,0.96605971]
[1641896263211,0.052,41809.0,41805.0,0.375264]
[1641896263411,0.052,41809.0,41804.0,0.90626271]
[1641896263811,0.052,41809.0,41805.0,0.375264]
[1641896264013,0.00085686,41809.0,41804.0,0.96605871]
[1641896264261,0.00032171,41809.0,41805.0,0.375264]
[1641896264459,0.00032171,41809.0,41806.0,0.29356909]
[1641896264856,0.041,41809.0,41806.0,0.29356909]
[1641896265056,0.041,41809.0,41807.0,0.375264]
[1641896266158,0.041,41809.0,41804.0,0.90626271]
[1641896266358,0.059801,41810.0,41804.0,0.90626271]
[1641896266557,0.109801,41810.0,41804.0,0.90626271]
[1641896266757,0.004,41809.0,41804.0,0.90626271]
[1641896267159,0.004,41809.0,41804.0,1.19583067]
[1641896267459,0.059803,41807.0,41804.0,1.19583067]
[1641896268022,0.119606,41807.0,41804.0,1.19583067]
[1641896268424,0.00057802,41811.0,41805.0,0.75770453]
[1641896268623,0.00121707,41814.0,41805.0,0.75770453]
[1641896268822,0.022,41807.0,41805.0,0.75770453]
[1641896269124,0.022,41807.0,41806.0,0.46702037]
[1641896269324,0.022,41807.0,41806.0,0.84228437]
[1641896269528,0.022,41807.0,41806.0,0.435051]
[1641896269724,0.022,41807.0,41806.0,0.375264]
[1641896270024,0.022,41807.0,41804.0,0.90626271]
[1641896270025,0.022,41807.0,41804.0,0.44577906]
[1641896270223,0.1196,41809.0,41804.0,0.44577906]
[1641896270224,0.005453,41806.0,41804.0,0.44577906]
[1641896270626,0.004983,41806.0,41804.0,0.44577906]
[1641896270824,0.013,41806.0,41804.0,0.44577906]
[1641896271125,0.013,41806.0,41805.0,0.375251]
[1641896272167,0.059797,41809.0,41805.0,0.375251]
[1641896272566,0.059795,41810.0,41804.0,0.50557606]
[1641896272766,0.042,41809.0,41804.0,0.50557606]
[1641896273165,0.042,41809.0,41804.0,0.44577906]
[1641896273567,0.042,41809.0,41805.0,0.375251]
[1641896273866,0.04135,41809.0,41805.0,0.375251]
[1641896274068,0.050769,41811.0,41808.0,0.46078989]
[1641896274368,0.000769,41811.0,41808.0,0.46078989]
[1641896274566,0.00127644,41812.0,41808.0,0.46078989]
[1641896274771,0.008,41811.0,41808.0,0.46078989]
[1641896275367,0.008,41811.0,41804.0,0.44577906]
[1641896275813,0.059805,41805.0,41793.0,0.37964092]
[1641896276013,0.059805,41805.0,41802.0,0.00040825]
[1641896276413,0.004985,41804.0,41802.0,0.00040825]
[1641896276815,0.064793,41804.0,41803.0,0.42123825]
[1641896277013,0.059808,41804.0,41803.0,0.42123825]
[1641896278414,0.008,41805.0,41803.0,0.42123825]
[1641896278615,0.27875301,41809.0,41803.0,0.42123825]
[1641896278814,0.009,41804.0,41803.0,0.42123825]
[1641896279973,0.00828,41804.0,41803.0,0.79648925]
[1641896280169,0.059803,41805.0,41803.0,0.79648925]
[1641896280470,0.00127644,41812.0,41806.0,0.27809797]
[1641896280769,0.00127644,41812.0,41803.0,0.42123825]
[1641896280770,0.009,41805.0,41803.0,0.42123825]
[1641896280971,0.16960669,41815.0,41803.0,0.42123825]
[1641896280972,0.00125053,41814.0,41811.0,0.32128984]
[1641896281173,1.23346765,41821.0,41811.0,0.32128984]
[1641896281174,1.13528099,41821.0,41811.0,0.32128984]
[1641896281471,0.004985,41820.0,41808.0,0.39903026]
[1641896281675,0.004985,41820.0,41819.0,0.44130833]
[1641896281871,0.754985,41820.0,41819.0,0.44130833]
[1641896282071,0.814776,41820.0,41819.0,0.44130833]
[1641896282671,0.754985,41820.0,41819.0,0.44130833]
[1641896282872,0.782985,41820.0,41819.0,0.44130833]
[1641896283310,0.832985,41820.0,41819.0,0.44130833]
[1641896283711,0.082985,41820.0,41819.0,0.44130833]
[1641896283913,0.732985,41820.0,41819.0,0.44130833]
[1641896284110,0.704985,41820.0,41819.0,0.44130833]
[1641896284915,0.732985,41820.0,41819.0,0.44130833]
[1641896285313,0.73421049,41820.0,41819.0,0.44130833]
[1641896285714,0.03421049,41820.0,41819.0,0.44130833]
[1641896285914,0.032985,41820.0,41819.0,0.44130833]
[1641896286114,0.004985,41820.0,41819.0,0.44130833]
[1641896286970,0.009,41820.0,41819.0,0.44130833]
[1641896287367,0.009,41820.0,41819.0,0.44030833]
[1641896288768,0.675888,41821.0,41819.0,0.44030833]
[1641896288968,0.014985,41820.0,41819.0,0.44030833]
[1641896289670,0.014985,41820.0,41819.0,0.43930833]
[1641896289871,0.064985,41820.0,41819.0,0.43930833]
[1641896290276,0.054985,41820.0,41819.0,0.43930833]
[1641896290513,0.004985,41820.0,41819.0,0.43930833]
[1641896290913,0.032985,41820.0,41819.0,0.43930833]
[1641896292115,0.675888,41821.0,41819.0,0.43930833]
[1641896292921,0.703888,41821.0,41819.0,0.43930833]
[1641896293315,0.004985,41820.0,41819.0,0.43930833]
[1641896293820,1.09306765,41829.0,41819.0,0.43930833]
[1641896294017,1.09306765,41829.0,41819.0,0.44054199]
[1641896294018,0.00085678,41822.0,41819.0,0.44054199]
[1641896294475,0.00085678,41822.0,41820.0,0.375126]
[1641896294675,0.00085678,41822.0,41820.0,0.43489251]
[1641896294873,0.024,41822.0,41821.0,0.70295621]
[1641896295076,0.024,41822.0,41821.0,1.07808221]
[1641896295375,0.00085677,41823.0,41822.0,0.29510553]
[1641896295578,0.00085677,41823.0,41822.0,0.67023153]
[1641896295776,0.00085677,41823.0,41822.0,0.72999853]
[1641896296179,0.67716765,41836.0,41830.0,0.0012748]
[1641896296376,0.67716765,41836.0,41835.0,0.76890929]
[1641896296576,1.09306765,41838.0,41835.0,0.76890929]
[1641896296774,0.67716765,41838.0,41835.0,0.76890929]
[1641896296979,0.021,41836.0,41835.0,0.77090929]
[1641896297178,0.67716765,41838.0,41835.0,0.77090929]
[1641896297477,0.4159,41846.0,41836.0,0.32784681]
[1641896297478,0.67716765,41845.0,41836.0,0.32784681]
[1641896297876,0.67716765,41845.0,41844.0,0.41770226]
[1641896298120,0.41712055,41854.0,41845.0,0.3774162]
[1641896298121,0.67716765,41849.0,41845.0,0.3774162]
[1641896298515,0.41712055,41854.0,41845.0,0.3774162]
[1641896298516,0.4159,41854.0,41852.0,0.25390966]
[1641896298718,0.7870579,41855.0,41845.0,0.3774162]
[1641896298719,0.059733,41855.0,41848.0,0.00122222]
[1641896298916,0.02,41849.0,41848.0,0.00122222]
[1641896299315,0.02,41849.0,41845.0,0.4401542]
[1641896299515,0.02,41849.0,41846.0,0.3763679]
[1641896299718,0.02,41849.0,41845.0,0.003]
[1641896299719,0.079744,41849.0,41845.0,0.003]
[1641896299918,0.08060059,41849.0,41845.0,0.003]
[1641896300119,0.12035174,41849.0,41834.0,0.00126407]
[1641896300318,0.16695283,41848.0,41832.0,0.044]
[1641896300518,0.059763,41841.0,41829.0,0.37122635]
[1641896300725,0.36994154,41840.0,41829.0,0.43241872]
[1641896300918,0.119541,41835.0,41832.0,0.021]
[1641896301317,0.00085667,41837.0,41832.0,0.021]
[1641896301518,0.059766,41836.0,41832.0,0.021]
[1641896301768,0.058466,41836.0,41832.0,0.021]
[1641896301963,0.11954,41835.0,41832.0,0.021]
[1641896302264,0.11954,41835.0,41829.0,0.43241872]
[1641896302465,0.11954,41835.0,41822.0,0.42112058]
[1641896302665,0.05977,41833.0,41825.0,0.27033493]
[1641896302864,0.05977,41833.0,41829.0,0.002]
[1641896303064,0.059769,41831.0,41829.0,0.002]
[1641896303374,1.23088005,41830.0,41829.0,0.002]
[1641896303566,1.32488005,41830.0,41829.0,0.002]
[1641896303764,1.72488005,41830.0,41829.0,0.002]
[1641896304164,2.67291975,41830.0,41819.0,0.25564833]
[1641896304467,0.059784,41826.0,41816.0,0.35137154]
[1641896304664,0.35413281,41825.0,41822.0,0.00038255]
[1641896304866,0.05,41824.0,41822.0,0.00038255]
[1641896305065,0.41391781,41825.0,41822.0,0.00038255]
[1641896305265,0.109783,41824.0,41822.0,0.00038255]
[1641896305712,0.05,41824.0,41819.0,0.019]
[1641896305917,0.35413281,41825.0,41821.0,0.00038258]
[1641896306112,0.0478,41826.0,41823.0,0.32608667]
[1641896306312,0.0478,41825.0,41823.0,0.32608667]
[1641896306513,0.12081242,41827.0,41823.0,0.32608667]
[1641896306514,0.0478,41824.0,41823.0,0.32608667]
[1641896306712,0.0478,41824.0,41823.0,0.70121267]
[1641896306912,0.0478,41824.0,41823.0,0.70221267]
[1641896307618,0.0478,41824.0,41823.0,0.32708667]
[1641896308014,0.0978,41824.0,41823.0,0.32708667]
[1641896308213,0.0978,41824.0,41823.0,0.32608667]
[1641896308418,0.0478,41824.0,41823.0,0.32608667]
[1641896308616,0.3978,41824.0,41823.0,0.32608667]
[1641896308813,0.0478,41824.0,41823.0,0.32608667]
[1641896309014,0.0508,41824.0,41823.0,0.34008667]
[1641896310068,0.0508,41824.0,41823.0,0.32608667]
[1641896310269,0.0478,41824.0,41823.0,0.32608667]
[1641896310871,0.006,41824.0,41823.0,0.33008667]
[1641896311077,0.006,41824.0,41823.0,0.70644027]
[1641896311471,0.006,41824.0,41823.0,0.76620627]
[1641896311871,0.006,41824.0,41823.0,0.4401196]
[1641896312070,0.006,41824.0,41823.0,0.55564504]
[1641896312271,0.29779645,41839.0,41832.0,0.40774832]
[1641896312572,0.29865292,41839.0,41827.0,0.059764]
[1641896313021,0.30645478,41839.0,41832.0,0.003]
[1641896313220,0.119525,41837.0,41832.0,0.003]
[1641896313418,0.0088566,41839.0,41832.0,0.003]
[1641896314218,0.239051,41841.0,41831.0,0.36782203]
[1641896314421,0.06061564,41839.0,41832.0,0.30155385]
[1641896314720,0.05085664,41839.0,41833.0,0.39935291]
[1641896314920,0.05885664,41839.0,41833.0,0.39935291]
[1641896315120,0.00885664,41839.0,41833.0,0.39935291]
[1641896315321,0.008,41839.0,41838.0,0.27120853]
[1641896315522,0.00885664,41839.0,41838.0,0.27120853]
[1641896316321,0.00085664,41839.0,41838.0,0.27120853]
[1641896316523,0.58393664,41847.0,41838.0,0.27120853]
[1641896316778,0.00071868,41841.0,41838.0,0.27120853]
[1641896316972,0.019,41839.0,41838.0,0.27420853]
[1641896317172,0.019,41839.0,41838.0,0.64933453]
[1641896317371,0.019,41839.0,41838.0,1.08087643]
[1641896317570,0.05,41844.0,41838.0,1.08087643]
[1641896317771,0.059748,41847.0,41838.0,0.70575043]
[1641896317972,0.059748,41847.0,41842.0,0.43995024]
[1641896318174,0.05975,41846.0,41842.0,0.43995024]
[1641896318574,0.00719983,41848.0,41842.0,0.43995024]
[1641896318877,0.018,41846.0,41842.0,0.44295024]
[1641896319873,0.018,41846.0,41845.0,0.29107187]
[1641896320073,0.018,41846.0,41845.0,0.63869077]
[1641896320274,0.00719983,41848.0,41845.0,1.01381677]
[1641896320513,0.00719983,41848.0,41845.0,0.63369077]
[1641896320916,0.01919983,41848.0,41846.0,0.059738]
[1641896321718,0.01919983,41848.0,41845.0,0.63669077]
[1641896322118,0.01919983,41848.0,41845.0,0.3506189]
[1641896322318,0.00719983,41848.0,41842.0,0.43995024]
[1641896322920,0.02519983,41848.0,41842.0,0.44495024]
[1641896323120,0.02519983,41848.0,41843.0,0.31198167]
[1641896323121,0.059746,41847.0,41843.0,0.31198167]
[1641896323519,0.059746,41847.0,41842.0,0.79130209]
[1641896323719,0.059746,41847.0,41842.0,0.44495024]
[1641896323920,0.0606026,41847.0,41842.0,0.44495024]
[1641896324126,0.0606026,41847.0,41842.0,0.43995024]
[1641896324568,0.0606026,41847.0,41842.0,0.68993584]
[1641896324770,0.0606026,41847.0,41843.0,0.4493528]
[1641896324968,0.066746,41847.0,41843.0,0.4493528]
[1641896325168,0.00785661,41847.0,41843.0,0.4493528]
[1641896326170,0.059745,41847.0,41843.0,0.4493528]
[1641896326370,0.0606016,41847.0,41843.0,0.4493528]
[1641896326970,0.0676016,41847.0,41843.0,0.004]
[1641896327672,0.0676016,41847.0,41843.0,0.00369895]
[1641896327872,0.05975,41846.0,41843.0,0.00369895]
[1641896328117,0.58393664,41845.0,41843.0,0.00369895]
[1641896329015,0.58393664,41844.0,41843.0,0.00869895]
[1641896329216,0.58393664,41844.0,41843.0,0.005]
[1641896329716,0.002,41845.0,41843.0,0.005]
[1641896330116,0.002,41845.0,41842.0,0.43995024]
[1641896330315,0.17035361,41846.0,41842.0,0.43995024]
[1641896330515,0.11060461,41846.0,41842.0,0.43995024]
[1641896330916,0.58393664,41845.0,41842.0,0.43995024]
[1641896331418,0.11060461,41846.0,41842.0,0.43995024]
[1641896331617,0.06060461,41846.0,41842.0,0.43995024]
[1641896332073,0.05377372,41846.0,41842.0,0.43995024]
[1641896332272,0.05463033,41846.0,41842.0,0.43995024]
[1641896333069,0.05863033,41846.0,41842.0,0.44595024]
[1641896333271,0.05777372,41846.0,41842.0,0.44595024]
[1641896333469,0.05863033,41846.0,41842.0,0.44595024]
[1641896333870,0.05863033,41846.0,41844.0,0.24848748]
[1641896334270,0.05463033,41846.0,41842.0,0.43995024]
[1641896334470,0.05377372,41846.0,41842.0,0.43995024]
[1641896334970,0.05677372,41846.0,41842.0,0.44595024]
[1641896336012,0.05763033,41846.0,41842.0,0.44595024]
[1641896336213,0.11437833,41846.0,41842.0,0.43995024]
[1641896337016,0.11552172,41846.0,41842.0,0.44795024]
[1641896337221,0.11637833,41846.0,41842.0,0.44795024]
[1641896337814,0.00285661,41846.0,41842.0,0.44795024]
[1641896338217,0.05719983,41848.0,41844.0,0.41251087]
[1641896338415,0.00085661,41846.0,41844.0,0.41251087]
[1641896338814,0.00085661,41846.0,41845.0,0.375126]
[1641896339271,0.06694183,41848.0,41845.0,0.375126]
[1641896339462,0.06779843,41848.0,41845.0,0.375126]
[1641896339663,0.12754243,41848.0,41845.0,0.375126]
[1641896339868,0.12754243,41848.0,41844.0,0.65487317]
[1641896340063,0.06780043,41848.0,41844.0,0.65487317]
[1641896340265,0.059746,41847.0,41844.0,0.65487317]
[1641896340666,0.059746,41847.0,41845.0,0.375126]
[1641896341067,0.063746,41847.0,41845.0,0.375126]
[1641896341268,0.063746,41847.0,41844.0,0.65987317]
[1641896341467,0.33380627,41846.0,41844.0,0.65987317]
[1641896341869,0.1478,41845.0,41844.0,0.18657317]
[1641896342068,0.059769,41841.0,41835.0,0.00038712]
[1641896342269,0.00125249,41836.0,41835.0,0.00038712]
[1641896342472,0.18653849,41836.0,41835.0,0.00038712]
[1641896342868,0.17676249,41836.0,41832.0,0.40812949]
[1641896343122,0.059769,41835.0,41833.0,0.0003872]
[1641896343321,0.0478,41834.0,41833.0,0.29028303]
[1641896343520,0.0978,41834.0,41833.0,0.29028303]
[1641896343920,0.0478,41834.0,41833.0,0.29028303]
[1641896344121,0.04750585,41834.0,41832.0,0.40812949]
[1641896344722,0.09750585,41834.0,41832.0,0.40812949]
[1641896344923,0.11550585,41834.0,41832.0,0.41112949]
[1641896345126,0.11550585,41834.0,41832.0,0.70144984]
[1641896345524,0.11550585,41834.0,41832.0,0.41112949]
[1641896346324,0.09750585,41834.0,41832.0,0.40812949]
[1641896346525,0.09750585,41834.0,41833.0,0.27354623]
[1641896346772,0.09750585,41834.0,41832.0,0.40812949]
[1641896346969,0.10150585,41834.0,41833.0,0.004]
[1641896347773,0.05150585,41834.0,41833.0,0.003]
[1641896348371,0.05150585,41834.0,41832.0,0.40812949]
[1641896348372,0.04750585,41834.0,41832.0,0.40812949]
[1641896348969,0.05150585,41834.0,41832.0,0.41212949]
[1641896349769,0.10150585,41834.0,41832.0,0.41212949]
[1641896349970,0.10150585,41834.0,41833.0,0.00069996]
[1641896350273,0.09750585,41834.0,41833.0,0.00069996]
[1641896350519,0.42667785,41834.0,41833.0,0.00069996]
[1641896350721,0.48644985,41834.0,41833.0,0.00069996]
[1641896350921,0.59144985,41834.0,41833.0,0.00069996]
[1641896351520,0.94170633,41834.0,41833.0,0.00069996]
[1641896352320,0.93670633,41834.0,41833.0,0.00069996]
[1641896352521,0.98670633,41834.0,41833.0,0.00069996]
[1641896352925,0.99170633,41834.0,41833.0,0.00069996]
[1641896353121,0.24648779,41832.0,41831.0,8.719e-05]
[1641896353321,0.39501564,41832.0,41825.0,0.00154917]
[1641896353521,0.239116,41829.0,41825.0,0.00154917]
[1641896353722,0.57179963,41829.0,41823.0,0.36651597]
[1641896353923,0.50224063,41829.0,41823.0,0.36651597]
[1641896354963,0.50424063,41829.0,41823.0,0.37351597]
[1641896355164,0.059777,41827.0,41824.0,0.00038475]
[1641896355365,0.002,41829.0,41825.0,0.375126]
[1641896355868,0.002,41829.0,41826.0,0.45658024]
[1641896356065,0.002,41829.0,41827.0,0.375126]
[1641896356268,0.00085652,41839.0,41828.0,1.07917192]
[1641896356466,0.00085652,41839.0,41834.0,0.39632336]
[1641896357064,0.02885652,41839.0,41834.0,0.39632336]
[1641896357264,0.028,41839.0,41834.0,0.39632336]
[1641896357467,0.02885664,41839.0,41838.0,0.31381956]
[1641896357865,0.02885664,41839.0,41838.0,0.7556616]
[1641896358313,0.00085664,41839.0,41838.0,0.7556616]
[1641896358516,0.059756,41840.0,41838.0,0.44184204]
[1641896359115,0.028,41839.0,41838.0,0.44184204]
[1641896359816,0.017278,41839.0,41838.0,0.44184204]
[1641896360816,0.059756,41840.0,41838.0,0.44184204]
[1641896361017,0.028,41839.0,41838.0,0.44284204]
[1641896362067,0.00719983,41848.0,41838.0,0.8157914]
[1641896362269,0.00719983,41848.0,41838.0,0.8147914]
[1641896362467,0.00085665,41841.0,41838.0,0.44184204]
[1641896362668,0.00085665,41841.0,41839.0,0.73679799]
[1641896362867,0.00085665,41841.0,41840.0,0.36745717]
[1641896363067,0.00085665,41841.0,41840.0,0.74258317]
[1641896363272,0.059746,41846.0,41840.0,0.434872]
[1641896363469,0.00085662,41843.0,41841.0,0.36425801]
[1641896363667,0.00085662,41843.0,41842.0,0.375126]
[1641896364268,0.00085662,41843.0,41842.0,0.63700673]
[1641896364471,0.059753,41845.0,41842.0,0.63700673]
[1641896364670,0.059752,41844.0,41842.0,0.26188073]
[1641896364871,0.059752,41844.0,41838.0,0.44184204]
[1641896365072,0.02185662,41845.0,41842.0,0.003]
[1641896365717,0.021,41845.0,41842.0,0.003]
[1641896366120,0.059749,41844.0,41843.0,0.25385015]
[1641896366318,0.021,41845.0,41843.0,0.25385015]
[1641896367118,0.031,41845.0,41843.0,0.25585015]
[1641896368424,0.00085661,41846.0,41843.0,0.25385015]
[1641896368621,0.00085661,41846.0,41843.0,0.31359433]
[1641896368821,0.05960161,41847.0,41843.0,0.31359433]
[1641896369022,0.012,41846.0,41844.0,0.44663743]
[1641896370270,0.05960161,41847.0,41844.0,0.44663743]
[1641896370670,0.05960161,41847.0,41844.0,0.70261946]
[1641896371076,0.06860161,41847.0,41844.0,0.70361946]
[1641896372072,0.06860161,41847.0,41844.0,0.68687336]
[1641896372472,0.009,41847.0,41844.0,0.68687336]
[1641896372872,0.00814341,41848.0,41844.0,0.68587336]
[1641896373131,0.006,41847.0,41845.0,0.36714887]
[1641896373329,0.58393664,41856.0,41845.0,0.36714887]
[1641896373530,0.4159,41859.0,41854.0,0.36784083]
[1641896373733,0.68401195,41858.0,41854.0,0.36784083]
[1641896373929,0.68401195,41858.0,41856.0,0.30815344]
[1641896374130,0.68401195,41858.0,41855.0,0.38900913]
[1641896374329,0.42,41861.0,41855.0,0.38900913]
[1641896374728,0.47,41861.0,41855.0,0.38900913]
[1641896374928,0.57,41861.0,41855.0,0.38900913]
[1641896375329,0.569,41861.0,41855.0,0.66106235]
[1641896375631,0.00085651,41860.0,41855.0,0.66106235]
[1641896376631,0.569,41861.0,41855.0,0.66106235]
[1641896376870,0.00085651,41860.0,41855.0,0.66106235]
[1641896377069,0.00085651,41860.0,41855.0,0.39100913]
[1641896378972,0.529733,41861.0,41855.0,0.38900913]
[1641896379171,0.00085651,41860.0,41855.0,0.39100913]
[1641896380172,0.479733,41861.0,41855.0,0.39100913]
[1641896380374,0.00085651,41860.0,41855.0,0.38900913]
[1641896381016,0.00085651,41860.0,41855.0,0.39100913]
[1641896381423,0.479733,41861.0,41855.0,0.39100913]
[1641896381617,0.00085651,41860.0,41855.0,0.39100913]
[1641896382418,0.00085651,41860.0,41855.0,0.38900913]
[1641896382617,0.629733,41861.0,41855.0,0.38900913]
[1641896382818,0.00085651,41860.0,41855.0,0.38900913]
[1641896383017,0.00805156,41860.0,41855.0,0.38900913]
[1641896383822,0.00719505,41860.0,41855.0,0.38900913]
[1641896384026,0.00805156,41860.0,41855.0,0.38900913]
[1641896384968,0.00719505,41860.0,41855.0,0.38900913]
[1641896385168,0.00805156,41860.0,41855.0,0.38900913]
[1641896386171,0.00719505,41860.0,41855.0,0.38900913]
[1641896386370,0.00805156,41860.0,41855.0,0.38900913]
[1641896387269,0.00719505,41860.0,41855.0,0.38900913]
[1641896387671,0.00805156,41860.0,41855.0,0.38900913]
[1641896388622,0.00719505,41860.0,41859.0,0.33843168]
[1641896388819,0.00719505,41860.0,41855.0,0.38900913]
[1641896388820,0.00805156,41860.0,41855.0,0.38900913]
[1641896389023,0.42,41861.0,41855.0,0.39000913]
[1641896389421,0.41719644,41861.0,41855.0,0.39000913]
[1641896390020,0.41719644,41861.0,41857.0,0.29694302]
[1641896390520,0.41719644,41861.0,41858.0,0.47989323]
[1641896390720,0.46719644,41861.0,41858.0,0.47989323]
[1641896391773,0.41719644,41861.0,41858.0,0.47989323]
[1641896392770,0.41719644,41861.0,41855.0,0.38900913]
[1641896393774,0.41719644,41861.0,41855.0,0.73500852]
[1641896394776,0.47693144,41861.0,41855.0,0.73500852]
[1641896395173,0.47693144,41861.0,41855.0,0.75800852]
[1641896395620,0.41719644,41861.0,41855.0,0.75800852]
[1641896396420,0.41719644,41861.0,41855.0,0.73500852]
[1641896397024,0.31722154,41860.0,41855.0,0.73500852]
[1641896397220,0.41719644,41861.0,41855.0,0.75800852]
[1641896398325,0.41719644,41861.0,41855.0,0.73500852]
[1641896399124,0.41719644,41861.0,41855.0,0.75800852]
[1641896399582,0.58712902,41859.0,41855.0,0.75800852]
[1641896400177,1.00432546,41861.0,41855.0,0.75800852]
[1641896400376,1.00432546,41861.0,41855.0,0.73500852]
[1641896401277,1.00432546,41861.0,41855.0,0.76100852]
[1641896401479,0.41719644,41861.0,41855.0,0.76100852]
[1641896402479,0.41719644,41861.0,41855.0,0.73500852]
[1641896402681,0.00085647,41862.0,41857.0,0.059716]
[1641896403120,0.58712902,41864.0,41863.0,0.2583185]
[1641896403321,0.58712902,41866.0,41863.0,0.2583185]
[1641896403821,0.63712902,41866.0,41864.0,0.38276662]
[1641896404021,0.05,41866.0,41864.0,0.38276662]
[1641896404521,0.04425261,41866.0,41864.0,0.38276662]
[1641896404728,0.32685405,41866.0,41864.0,0.38276662]
[1641896405025,1.27329522,41865.0,41852.0,0.00040754]
[1641896405221,0.0478,41864.0,41852.0,0.00040754]
[1641896405421,0.059733,41862.0,41857.0,0.26394383]
[1641896405625,0.059733,41862.0,41852.0,0.00040758]
[1641896405626,0.0478,41861.0,41852.0,0.00040758]
[1641896405821,0.0478,41861.0,41853.0,0.37343596]
[1641896406021,0.0478,41861.0,41857.0,0.3508964]
[1641896406220,0.00085648,41862.0,41857.0,0.3508964]
[1641896406621,0.0478,41866.0,41860.0,0.31155444]
[1641896406877,0.00085649,41862.0,41857.0,0.3508964]
[1641896407077,0.00085649,41862.0,41860.0,0.001]
[1641896407778,0.89807948,41868.0,41860.0,0.001]
[1641896407978,0.00085649,41863.0,41861.0,0.40895397]
[1641896408377,0.00085649,41863.0,41862.0,0.26576632]
[1641896408979,0.57,41868.0,41862.0,0.26576632]
[1641896409178,0.00085648,41865.0,41861.0,0.40895397]
[1641896410181,0.57,41868.0,41864.0,0.27746375]
[1641896410527,0.57,41868.0,41861.0,0.40895397]
[1641896410528,0.00085648,41865.0,41861.0,0.40895397]
[1641896410731,0.008,41869.0,41862.0,0.36373728]
[1641896410930,0.008,41869.0,41868.0,0.23773945]
[1641896411130,0.00342529,41873.0,41868.0,0.62281568]
[1641896411330,0.58752072,41877.0,41869.0,0.31506746]
[1641896411528,0.58752072,41877.0,41871.0,0.38960439]
[1641896411730,0.58752072,41877.0,41869.0,0.31506746]
[1641896411928,0.0003917,41877.0,41869.0,0.31506746]
[1641896412333,0.0003917,41877.0,41876.0,0.40200317]
[1641896413234,0.0003917,41877.0,41876.0,0.40400317]
[1641896413430,0.0003917,41877.0,41876.0,0.66477268]
[1641896413630,0.0003917,41877.0,41876.0,1.0428498]
[1641896413831,0.0003917,41877.0,41876.0,0.66477268]
[1641896414032,0.00021931,41877.0,41876.0,0.66477268]
[1641896414291,0.00021931,41877.0,41876.0,0.66600279]
[1641896414479,0.00021931,41877.0,41876.0,0.74385279]
[1641896414678,0.00021931,41877.0,41876.0,0.48308328]
[1641896415279,0.00021931,41877.0,41876.0,0.49408328]
[1641896415482,0.00021931,41877.0,41876.0,0.41423328]
[1641896415681,0.00021931,41877.0,41876.0,0.47391628]
[1641896415881,0.00021931,41877.0,41876.0,0.41423328]
[1641896416280,0.00021931,41877.0,41876.0,0.66453478]
[1641896416481,0.00021931,41877.0,41876.0,0.65353478]
[1641896416681,0.00021931,41877.0,41876.0,0.40323328]
[1641896417280,0.00021931,41877.0,41876.0,0.41223328]
[1641896417484,0.00021931,41877.0,41876.0,0.41100317]
[1641896418529,0.24021931,41877.0,41876.0,0.40200317]
[1641896419229,0.24021931,41877.0,41876.0,0.42300317]
[1641896420530,0.24021931,41877.0,41876.0,0.40328627]
[1641896421132,0.24021931,41877.0,41876.0,0.41000317]
[1641896421791,0.24021931,41877.0,41876.0,0.008]
[1641896421977,0.72716197,41877.0,41876.0,0.008]
[1641896422176,0.72496197,41877.0,41876.0,0.008]
[1641896422376,2.17496197,41877.0,41876.0,0.008]
[1641896422579,2.02496197,41877.0,41876.0,0.008]
[1641896422777,2.17496197,41877.0,41876.0,0.008]
[1641896423178,2.23096197,41877.0,41876.0,0.008]
[1641896423776,0.92496197,41877.0,41865.0,0.45772504]
[1641896423979,0.27580828,41873.0,41867.0,0.27915172]
[1641896424177,0.32360828,41873.0,41867.0,0.27915172]
[1641896424378,0.32065734,41872.0,41867.0,0.27915172]
[1641896424577,0.32065734,41872.0,41865.0,0.45772504]
[1641896424578,0.0478,41871.0,41865.0,0.45772504]
[1641896425181,0.0508,41871.0,41865.0,0.48372504]
[1641896425380,0.0508,41871.0,41865.0,0.48498313]
[1641896425620,0.0508,41871.0,41865.0,0.48372504]
[1641896426019,0.00085644,41870.0,41865.0,0.48372504]
[1641896426220,0.04865644,41870.0,41865.0,0.026]
[1641896426421,0.04865644,41870.0,41864.0,0.26032348]
[1641896427120,0.0478,41870.0,41864.0,0.26032348]
[1641896427322,0.00085645,41869.0,41864.0,0.28232348]
[1641896428122,0.0478,41870.0,41865.0,0.34656373]
[1641896428524,0.33288508,41868.0,41865.0,0.34656373]
[1641896428722,0.33288508,41868.0,41864.0,0.26032348]
[1641896428922,0.00085645,41869.0,41864.0,0.26032348]
[1641896429384,0.001,41868.0,41864.0,0.28932348]
[1641896430383,0.001,41868.0,41861.0,0.00122177]
[1641896430581,0.0478,41870.0,41861.0,0.00122177]
[1641896430780,0.00085645,41868.0,41861.0,0.00122177]
[1641896430983,0.00085645,41868.0,41860.0,0.00041338]
[1641896431189,0.00128217,41866.0,41861.0,0.03]
[1641896431384,0.27299162,41864.0,41861.0,0.03]
[1641896431582,0.0478,41863.0,41861.0,0.03]
[1641896432381,0.0478,41863.0,41858.0,0.45376254]
[1641896433138,0.0478,41863.0,41858.0,0.45418041]
[1641896433338,0.0518,41863.0,41858.0,0.47818041]
[1641896433739,0.0518,41863.0,41862.0,0.34382499]
[1641896434540,0.0478,41863.0,41862.0,0.34382499]
[1641896434941,0.0478,41863.0,41860.0,0.00041783]
[1641896435241,0.0518,41863.0,41862.0,0.006]
[1641896436244,0.00085635,41870.0,41862.0,0.006]
[1641896436245,0.00085635,41870.0,41862.0,0.00723847]
[1641896436444,0.00085635,41870.0,41862.0,0.00123847]
[1641896436644,0.58712902,41874.0,41862.0,0.00123847]
[1641896436884,0.00085641,41870.0,41863.0,0.00041778]
[1641896437084,0.33326101,41870.0,41863.0,0.00041778]
[1641896437484,0.39298201,41870.0,41863.0,0.00041778]
[1641896437884,0.3921256,41870.0,41862.0,0.027]
[1641896438088,0.39298202,41870.0,41863.0,0.00041778]
[1641896438385,0.28178848,41866.0,41863.0,0.00041778]
[1641896438986,0.28178848,41866.0,41858.0,0.45376254]
[1641896439186,0.34151648,41866.0,41862.0,0.0004178]
[1641896439386,0.73091583,41866.0,41863.0,0.007]
[1641896439587,0.0478,41865.0,41863.0,0.007]
[1641896440185,0.2878,41865.0,41863.0,0.007]
[1641896440630,0.2878,41865.0,41862.0,0.00041781]
[1641896440826,0.3378,41865.0,41862.0,0.00041781]